Workbook

Sheet AchLNAMELatencyCmp_2stim_4R2
A1: Mouse_ID | B1: Loc_ID | C1: CapOrderName | D1: UpLtc | E1: FallLtcP | F1: FallLtcPN | G1: WhichStim | H1: WidthP | I1: WidthPN
A2: 866b | B2: 866 | C2: pa | D2: 6.17 | E2: 29.06 | F2: 42.89 | G2: 1Before | H2: 22.89 | I2: 36.72
A3: 866b | B3: 866 | C3: 1stCap | D3: 16.52 | E3: 33.55 | F3: 47.8 | G3: 1Before | H3: 17.03 | I3: 31.28
A4: 866b | B4: 866 | C4: 2ndCap | D4: 3.37 | E4: 34.68 | F4: 45.81 | G4: 1Before | H4: 31.31 | I4: 42.44
A5: 866b | B5: 866 | C5: 3rdCap | D5: 19.36 | E5: 32.94 | F5: 34.91 | G5: 1Before | H5: 13.58 | I5: 15.55
A6: 866c | B6: 866 | C6: pa | D6: 3.6 | E6: 40.71 | F6: 37.38 | G6: 1Before | H6: 37.11 | I6: 33.78
A7: 866c | B7: 866 | C7: 1stCap | D7: 16.39 | E7: 78.33 | F7: 78.18 | G7: 1Before | H7: 61.94 | I7: 61.79
A8: 866c | B8: 866 | C8: 2ndCap | D8: 16.93 | E8: 118.56 | F8: 106.32 | G8: 1Before | H8: 101.63 | I8: 89.39
A9: 866c | B9: 866 | C9: 3rdCap | D9: 1.83 | E9: 42.38 | F9: 39.72 | G9: 1Before | H9: 40.55 | I9: 37.89
A10: 888a | B10: 888 | C10: pa | D10: 5.5 | E10: 53 | F10: 55.74 | G10: 1Before | H10: 47.5 | I10: 50.24
A11: 888a | B11: 888 | C11: 1stCap | D11: 11.77 | E11: 54.21 | F11: 57.74 | G11: 1Before | H11: 42.44 | I11: 45.97
A12: 888a | B12: 888 | C12: 2ndCap | D12: 11.23 | E12: 61.65 | F12: 62.62 | G12: 1Before | H12: 50.42 | I12: 51.39
A13: 888a | B13: 888 | C13: 3rdCap | D13: 12.5 | E13: 61.78 | F13: 65.75 | G13: 1Before | H13: 49.28 | I13: 53.25
A14: 888b | B14: 888 | C14: pa | D14: 4.27 | E14: 34.46 | F14: 35.96 | G14: 1Before | H14: 30.19 | I14: 31.69
A15: 888b | B15: 888 | C15: 1stCap | D15: 1.97 | E15: 34.04 | F15: 32.4 | G15: 1Before | H15: 32.07 | I15: 30.43
A16: 888b | B16: 888 | C16: 2ndCap | D16: 10.08 | E16: 38.85 | F16: 39.35 | G16: 1Before | H16: 28.77 | I16: 29.27
A17: 888b | B17: 888 | C17: 3rdCap | D17: 12.47 | E17: 37.1 | F17: 39.76 | G17: 1Before | H17: 24.63 | I17: 27.29
A18: 890a | B18: 890 | C18: pa | D18: 4.53 | E18: 36.1 | F18: 42.56 | G18: 1Before | H18: 31.57 | I18: 38.03
A19: 890a | B19: 890 | C19: 1stCap | D19: 2.36 | E19: 36.45 | F19: 40.77 | G19: 1Before | H19: 34.09 | I19: 38.41
A20: 890a | B20: 890 | C20: 2ndCap | D20: 10.98 | E20: 60.98 | F20: 50.67 | G20: 1Before | H20: 50 | I20: 39.69
A21: 890d | B21: 890 | C21: pa | D21: 7.06 | E21: 45.06 | F21: 53.14 | G21: 1Before | H21: 38 | I21: 46.08
A22: 890d | B22: 890 | C22: 1stCap | D22: 16.15 | E22: 47.09 | F22: 64.89 | G22: 1Before | H22: 30.94 | I22: 48.74
A23: 890d | B23: 890 | C23: 2ndCap | D23: 12.53 | E23: 80.49 | F23: 73.98 | G23: 1Before | H23: 67.96 | I23: 61.45
A24: 896d | B24: 896 | C24: pa | D24: 5.23 | E24: 73.46 | F24: 64.4 | G24: 1Before | H24: 68.23 | I24: 59.17
A25: 896d | B25: 896 | C25: 1stCap | D25: 6.15 | E25: 49.19 | F25: 51.85 | G25: 1Before | H25: 43.04 | I25: 45.7
A26: 896e | B26: 896 | C26: pa | D26: 5.37 | E26: 44 | F26: 48.61 | G26: 1Before | H26: 38.63 | I26: 43.24
A27: 896e | B27: 896 | C27: 1stCap | D27: 2.76 | E27: 40.72 | F27: 46.56 | G27: 1Before | H27: 37.96 | I27: 43.8
A28: 896e | B28: 896 | C28: 2ndCap | D28: 0.49 | E28: 50.47 | F28: 52.3 | G28: 1Before | H28: 49.98 | I28: 51.81
A29: 896e | B29: 896 | C29: 3rdCap | D29: 4.04 | E29: 56.16 | F29: 55.39 | G29: 1Before | H29: 52.12 | I29: 51.35
A30: 867a | B30: 867 | C30: pa | D30: 11.07 | E30: 51.82 | F30: 56.25 | G30: 1Before | H30: 40.75 | I30: 45.18
A31: 867a | B31: 867 | C31: 1stCap | D31: 8.97 | E31: 62.12 | F31: 56.18 | G31: 1Before | H31: 53.15 | I31: 47.21
A32: 867a | B32: 867 | C32: 2ndCap | D32: 15.08 | E32: 70.94 | F32: 65.85 | G32: 1Before | H32: 55.86 | I32: 50.77
A33: 867b | B33: 867 | C33: pa | D33: 39.98 | E33: 94.44 | F33: 94.65 | G33: 1Before | H33: 54.46 | I33: 54.67
A34: 866b | B34: 866 | C34: pa | D34: 11.18 | E34: 60.97 | F34: 43.13 | G34: After LNAME | H34: 49.79 | I34: 31.95
A35: 866b | B35: 866 | C35: 1stCap | D35: 8.78 | E35: 58.77 | F35: 35.75 | G35: After LNAME | H35: 49.99 | I35: 26.97
A36: 866b | B36: 866 | C36: 3rdCap | D36: 3.2 | E36: 24.94 | F36: 39.84 | G36: After LNAME | H36: 21.74 | I36: 36.64
A37: 866c | B37: 866 | C37: pa | D37: 13.36 | E37: 55.05 | F37: 52.47 | G37: After LNAME | H37: 41.69 | I37: 39.11
A38: 866c | B38: 866 | C38: 1stCap | D38: 0 | E38: 49.66 | F38: 54.89 | G38: After LNAME | H38: 49.66 | I38: 54.89
A39: 888a | B39: 888 | C39: pa | D39: 3.87 | E39: 39.32 | F39: 39.12 | G39: After LNAME | H39: 35.45 | I39: 35.25
A40: 888a | B40: 888 | C40: 1stCap | D40: 2.94 | E40: 34.22 | F40: 37.86 | G40: After LNAME | H40: 31.28 | I40: 34.92
A41: 888a | B41: 888 | C41: 2ndCap | D41: 6.72 | E41: 40.41 | F41: 42.4 | G41: After LNAME | H41: 33.69 | I41: 35.68
A42: 888a | B42: 888 | C42: 3rdCap | D42: 3.58 | E42: 47.21 | F42: 47.57 | G42: After LNAME | H42: 43.63 | I42: 43.99
A43: 890a | B43: 890 | C43: pa | D43: 8.02 | E43: 28.09 | F43: 36.34 | G43: After LNAME | H43: 20.07 | I43: 28.32
A44: 890a | B44: 890 | C44: 1stCap | D44: 6.76 | E44: 31.79 | F44: 41.89 | G44: After LNAME | H44: 25.03 | I44: 35.13
A45: 890a | B45: 890 | C45: 2ndCap | D45: 6.66 | E45: 32.94 | F45: 50.27 | G45: After LNAME | H45: 26.28 | I45: 43.61
A46: 890a | B46: 890 | C46: 3rdCap | D46: 6.17 | E46: 31.64 | F46: 70.52 | G46: After LNAME | H46: 25.47 | I46: 64.35
A47: 896e | B47: 896 | C47: 1stCap | D47: 8.92 | E47: 39.53 | F47: 42.89 | G47: After LNAME | H47: 30.61 | I47: 33.97
A48: 896e | B48: 896 | C48: 2ndCap | D48: 11.37 | E48: 53.96 | F48: 51.91 | G48: After LNAME | H48: 42.59 | I48: 40.54
A49: 867a | B49: 867 | C49: 2ndCap | D49: 27.77 | E49: 48.38 | F49: 49.91 | G49: After LNAME | H49: 20.61 | I49: 22.14
A50: 867a | B50: 867 | C50: 3rdCap | D50: 30.25 | E50: 48.09 | F50: 49.63 | G50: After LNAME | H50: 17.84 | I50: 19.38
A51: 867b | B51: 867 | C51: 1stCap | D51: 8.29 | E51: 54.66 | F51: 50.39 | G51: After LNAME | H51: 46.37 | I51: 42.1
A52: 867b | B52: 867 | C52: 3rdCap | D52: 20.87 | E52: 70.21 | F52: 73.21 | G52: After LNAME | H52: 49.34 | I52: 52.34
A53: 867 | B53: 867b | C53: Neck | D53: 29.7288 | E53: 39.7382 | F53: 97.1473 | G53: 1Before | H53: =E53-D53 -> 10.0094 | I53: =F53-D53 -> 67.4185
A54: 867 | B54: 867b | C54: Neck | D54: 8.29 | E54: 54.66 | F54: 50.39 | G54: After LNAME | H54: =E54-D54 -> 46.37 | I54: =F54-D54 -> 42.1
A55: 870 | B55: 870Loc1 | C55: Neck | D55: 18.3107 | E55: 32.8403 | F55: 33.2082 | G55: 1Before | H55: =E55-D55 -> 14.5296 | I55: =F55-D55 -> 14.8975
A56: 870 | B56: 870Loc1 | C56: Neck | D56: NA | E56: 14.2695 | F56: 15.6875 | G56: After LNAME | H56: 14.2695 | I56: 15.6875
A57: 878 | B57: 878Loc5 | C57: Neck | D57: 27.7559 | E57: 33.9816 | F57: 34.2766 | G57: 1Before | H57: =E57-D57 -> 6.2257 | I57: =F57-D57 -> 6.5207
A58: 878 | B58: 878Loc5 | C58: Neck | D58: 3.3586 | E58: 13.3162 | F58: 49.2211 | G58: After LNAME | H58: =E58-D58 -> 9.9576 | I58: =F58-D58 -> 45.8625
A59: 888 | B59: 888Loc1 | C59: Neck | D59: 5.84 | E59: 48.2 | F59: 50.45 | G59: 1Before | H59: =E59-D59 -> 42.36 | I59: =F59-D59 -> 44.61
A60: 888 | B60: 888Loc1 | C60: Neck | D60: 4.32 | E60: 37.92 | F60: 37.82 | G60: After LNAME | H60: 33.6 | I60: 33.5
A61: 896 | B61: 896Loc5 | C61: Neck | D61: 3.4816 | E61: 32.0412 | F61: 49.0468 | G61: 1Before | H61: =E61-D61 -> 28.5596 | I61: =F61-D61 -> 45.5652
A62: 896 | B62: 896Loc5 | C62: Neck | D62: 11.1617 | E62: 18.0936 | F62: 34.0752 | G62: After LNAME | H62: =E62-D62 -> 6.9319 | I62: =F62-D62 -> 22.9135
A63: 738 | B63: 738Loc1 | C63: Neck | D63: 9.3546 | E63: 50.254 | F63: 52.3474 | G63: 1Before | H63: =E63-D63 -> 40.8994 | I63: =F63-D63 -> 42.9928
